Workbook

Sheet Eric's Notes (hidden)
A1: Questions
A3: How well does the applicant demonstrate understanding of underlying techno-economics driving nuclear costs?
A5: Does the applicant's proposal address meaningful cost reduction or improved cost?
A7: Is the proposed idea achievable based on the proposed approach?
A9: How likely is the achievement of this idea?
A11: How likely will the full / meaningful extent of the proposed cost reduction be captured even if the innovation were achieved?
A13: Stoplight analysis: Green, Yellow, Red
A15: Impact consists of several items:
A16: - Direct cost reduction
A17: - Indirect cost reduction
A18: - Risk reduction (how should this be treated?)
A19: - Schedule reduction
A20: - Schedule risk reduction
A22: Likelihood consists of:
A23: - Likelihood of extent of application (i.e., will the innovation have as broad an impact as claimed?)
A25: - Likelihood of extent (depth) of impact (i.e., will it reduce costs by X or only X/2?)
A27: - Business / economic feasibility (other factors that might support or discount the likelihood of the impact)

Sheet Welcome
A1: Nuclear Power Plant Cost Reduction Model
A2: ARPA-E MEITNER Program (Modeling-Enhanced Innovations Trailblazing Nuclear Energy Reinvigoration)
A4: January 2018
A6: Welcome
A8: Overview
A9: This spreadsheet calculates the overnight construction cost, total capital cost, and levelized cost of electricity (LCOE) for nuclear power plants
A10: based on user inputs reflecting innovative cost-reduction concepts.
A11: Applicants in the ARPA-E MEITNER program specify cost reductions for the nuclear power plant systems affected by their concept.
A12: Cost reductions are relative to generic cost values for a pressurized water reactor (PWR) with conventional project delivery, as estimated by Lucid Strategy.
A13: The spreadsheet applies the comprehensive and standardized cost accounting framework used by the Generation IV International Forum.
A15: Instructions
A16: Applicants should make changes to only one tab in the spreadsheet: User Inputs and Cost Calcs.
A17: Please enter the requested information about your organization and concept in the blue cells near the top of the User Inputs and Cost Calcs tab.
A18: In the table at the center of the User Inputs and Cost Calcs tab…
A19: 1. Review the nuclear power plant systems in the table's rows and their cost estimates for the PWR reference plant.
A20: --- The Gen IV cost codes for plant systems appear to the left of the table.
A21: --- Hyperlinks to the left of the table allow users to review the reference cost sources and calculations on the black tabs to the right.
A22: --- The reference cost sources and calculations provide background information for users to estimate cost reductions from their own concepts.
A23: 2. Indicate in the first blue column of the table whether your concept would affect each power plant system (TRUE or FALSE).
A24: 3. For each system affected by your concept (TRUE in first blue column), enter brief notes about your concept's technology and cost impacts for the system.
A25: --- If necessary, provide additional details in your main application document.
A26: 4. Enter your estimated cost reduction percentage for the relevant system relative to the reference cost values.
A27: --- The model will then calculate the updated cost for the relevant system based on your reduction percentage.
A28: 5. Below the main table, enter your construction duration and plant lifetime only if different from the reference plant values.
A29: 6. When you have finished entering inputs, review your total estimated costs and reductions at the upper right.
A31: Additional Notes
A32: Applicants are encouraged to identify the full set of power plant systems that could be affected by their innovative cost-reduction concepts.
A33: --- For example, concepts that shorten construction duration would reduce indirect services (30s) in addition to interest during construction (calculated by the model).
A34: Cost impact estimates should reflect Nth-of-a-kind plants.
A35: If any aspect of your concept would increase costs for a power plant system, enter a negative value for the system's cost reduction percentage.
A36: All capacity labels (kW and MW) refer to electric power.
A37: --- The model does not account for other potential nuclear plant outputs (such as heat production).
A38: --- The model does not calculate impacts on power revenue or grid value from load following or other grid integration concepts.
A39: Emergency Planning Zone (EPZ) and emergency response time can affect staff levels and other operating costs.
A40: Cost estimates do not include contingency factors, contractor markups, or development costs (such as reactor design or licensing costs).
A41: Costs are expressed in 2017 dollars, and source tabs show inflation factors for bringing older cost values to this level.

Sheet User Inputs and Cost Calcs
C1: User Inputs and Cost Calcs
C3: Applicant Organization:
C4: Application Control Number:
C5: Principal Investigator Name:
C6: Concept Title:
C7: Applicable Reactor Type:
C8: Technical Category:
G10: Reference Costs | J10: Applicant's Costs
F11: Overnight Construction Cost --> | G11: =SUM(G21:G29,G31:G33,G35:G38) -> 5690.779012 | H11: =SUM(H21:H29,H31:H33,H35:H38) -> 58.67924663 | J11: =$G11-SUM(J21:J29)-SUM(J31:J33)-SUM(J35:J38) -> 5690.779012 | K11: =-PMT(DiscountRate,MIN(ApplicantCapPeriod,CapitalizationPeriod),J11)/(8760*CapacityFactor)*1000 -> 58.67924663
F12: Interest During Construction --> | G12: =SUM('LCOE Parameters and Interest'!B18:D18) -> 1244.947558 | H12: =-PMT(DiscountRate,CapitalizationPeriod,G12)/(8760*CapacityFactor)*1000 -> 12.8370096 | J12: =SUM('LCOE Parameters and Interest'!E18:G18) -> 1244.947558 | K12: =-PMT(DiscountRate,MIN(ApplicantCapPeriod,CapitalizationPeriod),J12)/(8760*CapacityFactor)*1000 -> 12.8370096
F13: Operating Costs --> | H13: =SUM(H40:H44) -> 29.58165485 | K13: =H13-SUM(K40:K44) -> 29.58165485
F14: Total Capital Cost and Levelized Cost of Elec --> | G14: =G11+G12 -> 6935.72657 | H14: =SUM(H11:H13) -> 101.0979111 | J14: =J11+J12 -> 6935.72657 | K14: =SUM(K11:K13) -> 101.0979111
F15: Applicant's Reductions from Reference Total Capital Cost and Levelized Cost of Elec --> | J15: =G14-J14 -> 0 | K15: =H14-K14 -> 0
F16: Applicant's Reduction Percentages --> | J16: =IF(ISNUMBER(J15),J15/J14,"-") -> 0 | K16: =IF(ISNUMBER(K15),K15/K14,"-") -> 0
D18: System Affected by Concept? | E18: Brief Summary Notes on Concept Innovation for System (Additional Details in Application Document) | F18: Brief Summary Notes on Concept Cost Impact Notes for System (Additional Details in Application Document) | G18: Reference Costs | I18: Applicant's Cost Reductions
A19: Cost Codes | B19: Reference Sources | C19: Nuclear Power Plant Systems | G19: $/kW | H19: $/MWh | I19: % Cost Reduction | J19: $/kW Cost Reduction | K19: $/MWh Cost Reduction
C20: Direct Construction Costs (20s)
A21: 220 | B21: Link | C21: Nuclear Steam Supply System | G21: ='DOE Cost Report'!O52 -> 344.0763616 | H21: =-PMT(DiscountRate,CapitalizationPeriod,G21)/(8760*CapacityFactor)*1000 -> 3.547869569 | J21: =G21*I21 -> 0 | K21: =-PMT(DiscountRate,MIN(ApplicantCapPeriod,CapitalizationPeriod),J21)/(8760*CapacityFactor)*1000 -> 0
A22: 223 | B22: Link | C22: Reactor Safeguards System | G22: ='DOE Cost Report'!O55 -> 47.98325307 | H22: 0.4947690175 | J22: =G22*I22 -> 0 | K22: 0
A23: 227 | B23: Link | C23: Reactor Instrumentation and Controls | G23: ='DOE Cost Report'!O59 -> 44.6410947 | H23: 0.4603070687 | J23: 0 | K23: 0
A24: Other 22s | B24: Link | C24: Other Reactor Systems | G24: ='DOE Cost Report'!O53+'DOE Cost Report'!O54+'DOE Cost Report'!O56+'DOE Cost Report'!O57+'DOE Cost Report'!O58+'DOE Cost Report'!O60 -> 274.3234225 | H24: 2.828627106 | J24: 0 | K24: 0
A25: 23s | B25: Link | C25: Turbine System | G25: ='DOE Cost Report'!O69 -> 498.2191934 | H25: 5.137280302 | J25: 0 | K25: 0
A26: 24s | B26: Link | C26: Electric System | G26: ='DOE Cost Report'!O77 -> 222.7262553 | H26: 2.296593988 | J26: 0 | K26: 0
A27: 25s | B27: Link | C27: Heat Rejection System | G27: ='DOE Cost Report'!O88 -> 105.0943281 | H27: 1.083657612 | J27: 0 | K27: 0
A28: 26s | B28: Link | C28: Other Plant Systems | G28: ='DOE Cost Report'!O84 -> 130.0087899 | H28: 1.340557739 | J28: 0 | K28: 0
A29: 21s | B29: Link | C29: Plant Buildings | G29: ='DOE Cost Report'!O50 -> 587.6132623 | H29: 6.059048061 | J29: 0 | K29: 0
C30: Indirect Services Costs (30s)
A31: 35, 37 | B31: Link | C31: Site-Specific Design Services | G31: ='DOE Cost Report'!O98+'DOE Cost Report'!O103 -> 911.8649176 | H31: =-PMT(DiscountRate,CapitalizationPeriod,G31)/(8760*CapacityFactor)*1000 -> 9.402499425 | J31: 0 | K31: =-PMT(DiscountRate,MIN(ApplicantCapPeriod,CapitalizationPeriod),J31)/(8760*CapacityFactor)*1000 -> 0
A32: 32, 36, 38 | B32: Link | C32: Project Management Services | G32: ='DOE Cost Report'!O104+'DOE Cost Report'!O99+'DOE Cost Report'!O100+'DOE Cost Report'!O105 -> 808.7984074 | H32: =-PMT(DiscountRate,CapitalizationPeriod,G32)/(8760*CapacityFactor)*1000 -> 8.339751222 | J32: 0 | K32: =-PMT(DiscountRate,MIN(ApplicantCapPeriod,CapitalizationPeriod),J32)/(8760*CapacityFactor)*1000 -> 0
A33: 31, 33 | B33: Link | C33: Other Indirect Services | G33: ='DOE Cost Report'!O96+'DOE Cost Report'!O106 -> 790.6386045 | H33: =-PMT(DiscountRate,CapitalizationPeriod,G33)/(8760*CapacityFactor)*1000 -> 8.15250031 | J33: 0 | K33: =-PMT(DiscountRate,MIN(ApplicantCapPeriod,CapitalizationPeriod),J33)/(8760*CapacityFactor)*1000 -> 0
C34: Other Overnight Construction Costs
A35: 10s | B35: Link | C35: Land, Studies, Permits | G35: =SUM('Other Reference Cost Sources'!B7:B13) -> 131.7 | H35: =-PMT(DiscountRate,CapitalizationPeriod,G35)/(8760*CapacityFactor)*1000 -> 1.357996289 | J35: 0 | K35: =-PMT(DiscountRate,MIN(ApplicantCapPeriod,CapitalizationPeriod),J35)/(8760*CapacityFactor)*1000 -> 0
A36: 40s | B36: Link | C36: Staff Recruitment, Training, Housing | G36: =SUM(G21:G29,G31:G33)*'Other Reference Cost Sources'!B20 -> 714.8981836 | H36: =-PMT(DiscountRate,CapitalizationPeriod,G36)/(8760*CapacityFactor)*1000 -> 7.371519213 | J36: 0 | K36: =-PMT(DiscountRate,MIN(ApplicantCapPeriod,CapitalizationPeriod),J36)/(8760*CapacityFactor)*1000 -> 0
A37: 58 | B37: Link | C37: Decommissioning | G37: =SUM(G21:G29,G31:G33)*'Other Reference Cost Sources'!B27/(1+'Other Reference Cost Sources'!B29)^'Other Reference Cost Sources'!B28 -> 38.19293847 | H37: =-PMT(DiscountRate,CapitalizationPeriod,G37)/(8760*CapacityFactor)*1000 -> 0.3938182894 | J37: 0 | K37: =-PMT(DiscountRate,MIN(ApplicantCapPeriod,CapitalizationPeriod),J37)/(8760*CapacityFactor)*1000 -> 0
A38: Other 50s | B38: Link | C38: Other Supplementary Costs | G38: =SUM('Other Reference Cost Sources'!B33:B37) -> 40 | H38: =-PMT(DiscountRate,CapitalizationPeriod,G38)/(8760*CapacityFactor)*1000 -> 0.4124514166 | J38: 0 | K38: =-PMT(DiscountRate,MIN(ApplicantCapPeriod,CapitalizationPeriod),J38)/(8760*CapacityFactor)*1000 -> 0
C39: Operating Costs
A40: 81, 84 | B40: Link | C40: Fuel Purchases | H40: ='Other Reference Cost Sources'!F40 -> 5.2295 | K40: =H40*I40 -> 0
A41: 86, 87 | B41: Link | C41: Spent Fuel Storage and Reproc | H41: ='Other Reference Cost Sources'!B41 -> 2.822580645 | K41: 0
A42: 71, 72 | B42: Link | C42: Staff | H42: ='Other Reference Cost Sources'!E87/('Other Reference Cost Sources'!$E$89*8760*CapacityFactor) -> 6.679775404 | K42: 0
A43: Other 70s | B43: Link | C43: Other O&M Costs | H43: ='Other Reference Cost Sources'!C103*1000000/('Other Reference Cost Sources'!$E$89*8760*CapacityFactor) -> 14.54337438 | K43: 0
A44: 90s | B44: Link | C44: Operating Fees | H44: ='Other Reference Cost Sources'!C111*1000000/('Other Reference Cost Sources'!$E$89*8760*CapacityFactor) -> 0.3064244197 | K44: 0
C46: Reference Plant Construction Duration | D46: 5
C47: Applicant's Plant Construction Duration | D47: =D46 -> 5
C49: Reference Plant Lifetime | D49: 25
C50: Applicant's Plant Lifetime (Only If Less)

Sheet DOE Cost Report
A1: DOE Cost Report
A2: Locked - No User Inputs or Changes
A4: This tab presents PWR construction cost estimates (20s and 30s cost codes in Gen IV framework) from the following report:
A5: U.S. Department of Energy, Energy Economic Data Base Program: Phase VIII Update Report, December 1986
A6: Table 5-3 (following page 5-14) for 1144 MWe pressurized water reactor based on median experience
A7: =HYPERLINK("http://www.osti.gov/scitech/servlets/purl/6927146","http://www.osti.gov/scitech/servlets/purl/6927146") -> http://www.osti.gov/scitech/servlets/purl/6927146
K8: 1144
K9: =245.12/109.6 -> 2.23649635
F10: Original Source (For 1144 MW PWR in 1986$) | L10: 2017$/kW
F11: Factory Equipment Costs | G11: Site Labor Hours (man-hours) | H11: Site Labor Cost | I11: Site Material Cost | J11: Total Costs | L11: Factory Equipment Costs | M11: Site Labor Cost | N11: Site Material Cost | O11: Total Costs
A12: Two-digit summary
A13: 21 | E13: STRUCTURES + IMPROVEMENTS | F13: 23196345 | G13: 9028599 | H13: 187850927 | I13: 89525350 | J13: 300572622 | L13: =F13*$K$9/($K$8*1000) -> 45.34837494 | M13: =H13*$K$9/($K$8*1000) -> 367.2446789 | N13: 175.0202085 | O13: 587.6132623
A14: 22 | E14: REACTOR PLANT EQUIPMENT | F14: 240229192 | G14: 4352219 | H14: 102814880 | I14: 20654982 | J14: 363699054 | L14: 469.6431042 | M14: 201.0009649 | N14: 40.38006281 | O14: 711.0241319
A15: 23 | E15: TURBINE PLANT EQUIPMENT | F15: 169727737 | G15: 3154618 | H15: 73734538 | I15: 11383997 | J15: 254846272 | L15: 331.8142171 | M15: 144.1494975 | N15: 22.2554788 | O15: 498.2191934
A16: 24 | E16: ELECTRIC PLANT EQUIPMENT | F16: 31107359 | G16: 2792072 | H16: 64568507 | I16: 18251812 | J16: 113927678 | L16: 60.81424377 | M16: 126.2300964 | N16: 35.68191514 | O16: 222.7262553
A17: 25 | E17: MISCELLANEOUS PLANT EQUIPT | F17: 19279977 | G17: 1730823 | H17: 40939697 | I17: 6281689 | J17: 66501363 | L17: 37.69195646 | M17: 80.0362613 | N17: 12.28057214 | O17: 130.0087899
A18: 26 | E18: MAIN COND HEAT REJECT SYS | F18: 31011399 | G18: 968055 | H18: 19335234 | I18: 3410625 | J18: 53757258 | L18: 60.62664395 | M18: 37.79998276 | N18: 6.667701368 | O18: 105.0943281
E19: TOTAL DIRECT COSTS | F19: 514552009 | G19: 22026386 | H19: 489243783 | I19: 149508455 | J19: 1153304247 | L19: 1005.93854 | M19: 956.4614817 | N19: 292.2859388 | O19: 2254.685961
A21: 91 | E21: CONSTRUCTION SERVICES | F21: 111710000 | G21: 7523000 | H21: 167067000 | I21: 108573000 | J21: 387350000 | L21: =F21*$K$9/($K$8*1000) -> 218.3907406 | M21: =H21*$K$9/($K$8*1000) -> 326.6125313 | N21: 212.2579705 | O21: 757.2612424
A22: 92 | E22: HOME OFFICE ENGRG.&SERVICE | F22: 468684000 | J22: 468684000 | L22: 916.267531 | M22: 0 | N22: 0 | O22: 916.267531
A23: 93 | E23: FIELD OFFICE ENGRG&SERVICE | F23: 389817000 | G23: 932000 | H23: 20719000 | I23: 17997000 | J23: 428533000 | L23: 762.0841764 | M23: 40.50521668 | N23: 35.18376295 | O23: 837.773156
E24: TOTAL INDIRECT COSTS | F24: 970211000 | G24: 8455000 | H24: 187786000 | I24: 126570000 | J24: 1284567000 | L24: 1896.742448 | M24: 367.1177479 | N24: 247.4417334 | O24: 2511.301929
E26: TOTAL BASE COST | F26: 1484763009 | G26: 30481386 | H26: 677029783 | I26: 276078455 | J26: 2437871247 | L26: =F26*$K$9/($K$8*1000) -> 2902.680988 | M26: =H26*$K$9/($K$8*1000) -> 1323.57923 | N26: 539.7276722 | O26: 4765.98789
A28: Three-digit details
B29: 211 | E29: YARDWORK | F29: 285069 | G29: 1039008 | H29: 19514914 | I29: 12438937 | J29: 32238920 | L29: =F29*$K$9/($K$8*1000) -> 0.5573040018 | M29: =H29*$K$9/($K$8*1000) -> 38.15125344 | N29: 24.31786469 | O29: 63.02642213
B30: 212 | E30: REACTOR CONTAINMENT BLDG | F30: 14914270 | G30: 3025169 | H30: 64055189 | I30: 20972815 | J30: 99942274 | L30: 29.15708953 | M30: 125.2265703 | N30: 41.00141976 | O30: 195.3850796
B31: 213 | E31: TURBINE ROOM + HEATER BAY | F31: 562599 | G31: 893357 | H31: 19320610 | I31: 17314877 | J31: 37198086 | L31: 1.099869415 | M31: 37.77139314 | N31: 33.85022659 | O31: 72.72148914
B32: 214 | E32: SECURITY BUILDING | F32: 77239 | G32: 52128 | H32: 1116280 | I32: 569859 | J32: 1763378 | L32: 0.1510006483 | M32: 2.182304323 | N32: 1.114062564 | O32: 3.447367536
B33: 215 | E33: PRIM AUX BLDG + TUNNELS | F33: 2992273 | G33: 779295 | H33: 16249557 | I33: 6579110 | J33: 25820940 | L33: 5.849831856 | M33: 31.76754801 | N33: 12.86202404 | O33: 50.47940391
B34: 216 | E34: WASTE PROCESS BUILDING | F34: 606289 | G34: 712439 | H34: 14598165 | I34: 6685912 | J34: 21890366 | L34: 1.185282461 | M34: 28.53911079 | N34: 13.07081974 | O34: 42.795213
B35: 217 | E35: FUEL STORAGE BLDG | F35: 964983 | G35: 322642 | H35: 6763583 | I35: 5068904 | J35: 12797470 | L35: 1.886521816 | M35: 13.22266494 | N35: 9.909602532 | O35: 25.01878929
B36: 218 | C36: A | E36: CONTROL RM/D-G BUILDING | F36: 1637755 | G36: 924808 | H36: 19827640 | I36: 8245719 | J36: 29711114 | L36: 3.201777168 | M36: 38.76262631 | N36: 16.12021018 | O36: 58.08461366
B37: 218 | C37: B | E37: ADMINISTRATION + SERVICE BLG | F37: 915834 | G37: 271347 | H37: 5856515 | I37: 3151926 | J37: 9924275 | L37: 1.790436537 | M37: 11.44936575 | N37: 6.161950171 | O37: 19.40175246
B38: 218 | C38: D | E38: FIRE PUMP HOUSE.INC FNDTNS | F38: 39598 | G38: 15673 | H38: 333660 | I38: 158410 | J38: 531668 | L38: 0.0774132714 | M38: 0.6522984023 | N38: 0.3096882752 | O38: 1.039399949
B39: 218 | C39: E | E39: EMERGENCY FEED PUMP BLDG | F39: 22168 | G39: 124178 | H39: 2545324 | I39: 999125 | J39: 3566617 | L39: 0.04333798173 | M39: 4.976055801 | N39: 1.95326872 | O39: 6.972662503
B40: 218 | C40: F | E40: MANWAY TUNNELS (RCA TUNLS) | F40: 0 | G40: 47558 | H40: 948263 | I40: 312189 | J40: 1260452 | L40: 0 | M40: 1.853834562 | N40: 0.6103230412 | O40: 2.464157603
B41: 218 | C41: G | E41: ELEC. TUNNELS | F41: 10907 | G41: 2228 | H41: 52407 | I41: 20404 | J41: 83718 | L41: 0.02132295952 | M41: 0.1024546016 | N41: 0.03988939819 | O41: 0.1636669593
B42: 218 | C42: H | E42: NON-ESSEN. SWGR BLDG. | F42: 21693 | G42: 19462 | H42: 414223 | I42: 284775 | J42: 720691 | L42: 0.04240936655 | M42: 0.8097974019 | N42: 0.5567292379 | O42: 1.408936006
B43: 218 | C43: J | E43: MN STEAM+ FW PIPE ENC. | F43: 33151 | G43: 385721 | H43: 8058310 | I43: 3547514 | J43: 11638975 | L43: 0.06480951968 | M43: 15.75382946 | N43: 6.935316533 | O43: 22.75395552
B44: 218 | C44: K | E44: PIPE TUNNELS | F44: 0 | G44: 18110 | H44: 352811 | I44: 120557 | J44: 473368 | L44: 0 | M44: 0.6897382114 | N44: 0.2356864428 | O44: 0.9254246542
B45: 218 | C45: L | E45: TECHNICAL SUPPORT CENTER | F45: 61791 | G45: 25241 | H45: 508802 | I45: 263405 | J45: 833998 | L45: 0.1208001276 | M45: =H45*$K$9/($K$8*1000) -> 0.9946973917 | N45: 0.5149513297 | O45: 1.630448849
B46: 218 | C46: P | E46: CONTAIN EQ HATCH MSLE SHLD | F46: 0 | G46: 9571 | H46: 189620 | I46: 57779 | J46: 247399 | L46: 0 | M46: 0.37070318 | N46: 0.1129567505 | O46: 0.4836599306
B47: 218 | C47: S | E47: WASTE WATER TREATMENT | F47: 8241 | G47: 29307 | H47: 581304 | I47: 298141 | J47: 887686 | L47: 0.01611098464 | M47: 1.136437303 | N47: 0.5828594916 | O47: 1.735407779
B48: 218 | C48: T | E48: ULTIMATE HEAT SINK STRUCT | F48: 42485 | G48: 327198 | H48: 6483324 | I48: 2404370 | J48: 8930179 | L48: 0.08305729672 | M48: 12.67476439 | N48: 4.700493645 | O48: 17.45831533
B49: 218 | C49: V | E49: CONTR RM EMG AIR INTK STR | F49: 0 | G49: 4159 | H49: 80426 | I49: 30622 | J49: 111048 | L49: 0 | M49: 0.1572311674 | N49: 0.05986537696 | O49: 0.2170965443
A50: 21 | E50: STRUCTURES + IMPROVEMENTS | F50: 23196345 | G50: 9028599 | H50: 187850927 | I50: 89525350 | J50: 300572622 | L50: 45.34837494 | M50: 367.2446789 | N50: 175.0202085 | O50: 587.6132623
B52: 220 | C52: A | E52: NUCLEAR STEAM SUPPLY (NSSS) | F52: 176000000 | G52: 0 | H52: 0 | I52: 0 | J52: 176000000 | L52: =F52*$K$9/($K$8*1000) -> 344.0763616 | M52: =H52*$K$9/($K$8*1000) -> 0 | N52: 0 | O52: 344.0763616
B53: 221 | E53: REACTOR EQUIPMENT | F53: 831973 | G53: 181940 | H53: 4222940 | I53: 5960795 | J53: 11015708 | L53: 1.626490016 | M53: 8.2557604 | N53: 11.653231 | O53: 21.53548141
B54: 222 | E54: MAIN HEAT XFER XPORT SYS. | F54: 3133571 | G54: 649012 | H54: 15365085 | I54: 1546926 | J54: 20045582 | L54: 6.126066525 | M54: 30.03842354 | N54: 3.024208351 | O54: 39.18869841
B55: 223 | E55: SAFEGUARDS SYSTEM | F55: 7776809 | G55: 636896 | H55: 15090607 | I55: 1676707 | J55: 24544123 | L55: 15.20350083 | M55: 29.50182472 | N55: 3.277927523 | O55: 47.98325307
B56: 224 | E56: RADWASTE PROCESSING | F56: 16725094 | G56: 518762 | H56: 12277686 | I56: 1261420 | J56: 30264200 | L56: 32.69721302 | M56: 24.00262232 | N56: 2.466050023 | O56: 59.16588536
B57: 225 | E57: FUEL HANDLING + STORAGE | F57: 2247112 | G57: 74632 | H57: 1763273 | I57: 167500 | J57: 4177885 | L57: 4.393057506 | M57: 3.447162263 | N57: 0.3274590373 | O57: 8.167678807
B58: 226 | E58: OTHER REACTOR PLANT EQUIP | F58: 20089817 | G58: 1672557 | H58: 39613821 | I58: 6120589 | J58: 65824227 | L58: 39.27517692 | M58: 77.44420113 | N58: 11.96562497 | O58: 128.685003
B59: 227 | E59: RX INSTRUMENTATION+CONTROL | F59: 13424816 | G59: 377700 | H59: 8750285 | I59: 659460 | J59: 22834561 | L59: 26.24523775 | M59: 17.10662628 | N59: 1.289230667 | O59: 44.6410947
B60: 228 | E60: REACTOR PLANT MISC ITEMS | F60: 0 | G60: 240720 | H60: 5731183 | I60: 3261585 | J60: 8992768 | L60: 0 | M60: 11.20434429 | N60: 6.376331249 | O60: 17.58067553
A61: 22 | E61: REACTOR PLANT EQUIPMENT | F61: 240229192 | G61: 4352219 | H61: 102814880 | I61: 20654982 | J61: 363699054 | L61: 469.6431042 | M61: 201.0009649 | N61: 40.38006281 | O61: 711.0241319
B63: 231 | E63: TURBINE GENERATOR | F63: 120820989 | G63: 465869 | H63: 10505712 | I63: 1798758 | J63: 133125459 | L63: =F63*$K$9/($K$8*1000) -> 236.2025358 | M63: =H63*$K$9/($K$8*1000) -> 20.53844978 | N63: 3.516534705 | O63: 260.2575203
B64: 233 | E64: CONDENSING SYSTEMS | F64: 17456863 | G64: 631888 | H64: 14840871 | I64: 1833538 | J64: 34131272 | L64: 34.12780628 | M64: 29.013596 | N64: 3.584528886 | O64: 66.72593117
B65: 234 | E65: FEED HEATING SYSTEM | F65: 16634731 | G65: 585608 | H65: 13866642 | I65: 1381328 | J65: 31882701 | L65: 32.52055522 | M65: 27.10899845 | N65: 2.700467684 | O65: 62.33002135
B66: 235 | E66: OTHER TURBINE PLANT EQUIP. | F66: 12902988 | G66: 986853 | H66: 23350606 | I66: 2372844 | J66: 38626438 | L66: 25.2250748 | M66: 45.64995201 | N66: 4.638860967 | O66: 75.51388777
B67: 236 | E67: INSTRUMENTATION+ CONTROL | F67: 1912166 | G67: 230900 | H67: 5344226 | I67: 456425 | J67: 7712817 | L67: 3.738245 | M67: 10.44785135 | N67: 0.8923014394 | O67: 15.07839779
B68: 237 | E68: TURBINE PLANT MISC ITEMS | F68: 0 | G68: 253500 | H68: 5826481 | I68: 3541104 | J68: 9367585 | L68: 0 | M68: 11.39064991 | N68: 6.922785116 | O68: 18.31343502
A69: 23 | E69: TURBINE PLANT EQUIPMENT | F69: 169727737 | G69: 3154618 | H69: 73734538 | I69: 11383997 | J69: 254846272 | L69: 331.8142171 | M69: 144.1494975 | N69: 22.2554788 | O69: 498.2191934
B71: 241 | E71: SWITCHGEAR | F71: 11090208 | G71: 25180 | H71: 581680 | I71: 85630 | J71: 11757518 | L71: =F71*$K$9/($K$8*1000) -> 21.68112737 | M71: =H71*$K$9/($K$8*1000) -> 1.137172375 | N71: 0.1674048798 | O71: 22.98570463
B72: 242 | E72: STATION SERVICE EQUIPMENT | F72: 16787134 | G72: 74182 | H72: 1659532 | I72: 321445 | J72: 18768111 | L72: 32.81849993 | M72: 3.244350753 | N72: 0.6284183298 | O72: 36.69126902
B73: 243 | E73: SWITCHBOARDS | F73: 1546682 | G73: 16340 | H73: 377929 | I73: 126626 | J73: 2051237 | L73: 3.023731336 | M73: 0.7388433822 | N73: 0.2475512123 | O73: 4.01012593
B74: 244 | E74: PROTECTIVE EQUIPMENT | F74: 0 | G74: 132050 | H74: 3079537 | I74: 1751225 | J74: 4830762 | L74: 0 | M74: 6.020431172 | N74: 3.423608672 | O74: 9.444039845
B75: 245 | E75: ELECT.STRUC +WIRING CONTNR | F75: 0 | G75: 1663710 | H75: 38333122 | I75: 6788697 | J75: 45121819 | L75: 0 | M75: 74.94046106 | N75: 13.27176229 | O75: 88.21222335
B76: 246 | E76: POWER & CONTROL WIRING | F76: 1683335 | G76: 880610 | H76: 20536707 | I76: 9178189 | J76: 31398231 | L76: 3.290885126 | M76: 40.14883763 | N76: 17.94316976 | O76: 61.38289252
A77: 24 | E77: ELECTRIC PLANT EQUIPMENT | F77: 31107359 | G77: 2792072 | H77: 64568507 | I77: 18251812 | J77: 113927678 | L77: 60.81424377 | M77: 126.2300964 | N77: 35.68191514 | O77: 222.7262553
B79: 251 | E79: TRANSPORTATION & LIFT EQPT | F79: 4970000 | G79: 48600 | H79: 1148298 | I79: 114830 | J79: 6233128 | L79: =F79*$K$9/($K$8*1000) -> 9.716247256 | M79: =H79*$K$9/($K$8*1000) -> 2.244898852 | N79: 0.2244902761 | O79: 12.18563638
B80: 252 | E80: AIR,WATER+STEAM SERVICE SY | F80: 9409756 | G80: 1382113 | H80: 32737715 | I80: 5261236 | J80: 47408707 | L80: 18.39587845 | M80: 64.00155605 | N80: 10.28560762 | O80: 92.68304212
B81: 253 | E81: COMMUNICATIONS EQUIPMENT | F81: 1948800 | G81: 192200 | H81: 4482296 | I81: 640754 | J81: 7071850 | L81: 3.809863713 | M81: 8.762796019 | N81: 1.252660824 | O81: 13.82532056
B82: 254 | E82: FURNISHINGS+ FIXTURES | F82: 2192851 | G82: 25910 | H82: 576189 | I82: 65349 | J82: 2834389 | L82: 4.286978373 | M82: 1.126437584 | N82: 0.1277559441 | O82: 5.5411719
B83: 255 | E83: WASTEWATER TREATMENT EQUIP | F83: 758570 | G83: 82000 | H83: 1995199 | I83: 199520 | J83: 2953289 | L83: 1.482988668 | M83: 3.900572799 | N83: 0.3900574754 | O83: 5.773618942
A84: 25 | D84: 26 | E84: MISCELLANEOUS PLANT EQUIPT | F84: 19279977 | G84: 1730823 | H84: 40939697 | I84: 6281689 | J84: 66501363 | L84: 37.69195646 | M84: 80.0362613 | N84: 12.28057214 | O84: 130.0087899
B86: 261 | E86: STRUCTURES | F86: 177249 | G86: 136614 | H86: 2783012 | I86: 1487882 | J86: 4448143 | L86: =F86*$K$9/($K$8*1000) -> 0.3465181308 | M86: =H86*$K$9/($K$8*1000) -> 5.440730927 | N86: 2.908778551 | O86: 8.69602761
B87: 262 | E87: MECHANICAL EQUIPMENT | F87: 30834150 | G87: 831441 | H87: 16552222 | I87: 1922743 | J87: 49309115 | L87: 60.28012582 | M87: 32.35925183 | N87: 3.758922817 | O87: 96.39830047
A88: 26 | D88: 25 | E88: MAIN COND HEAT REJECT SYS | F88: 31011399 | G88: 968055 | H88: 19335234 | I88: 3410625 | J88: 53757258 | L88: 60.62664395 | M88: 37.79998276 | N88: 6.667701368 | O88: 105.0943281
E90: TOTAL DIRECT COSTS | F90: 514552009 | G90: 22026386 | H90: 489243783 | I90: 149508455 | J90: 1153304247 | L90: =F90*$K$9/($K$8*1000) -> 1005.93854 | M90: =H90*$K$9/($K$8*1000) -> 956.4614817 | N90: 292.2859388 | O90: 2254.685961
B92: 911 | E92: TEMPORARY CONSTRUCTION FAC | F92: 0 | G92: 7095000 | H92: 157567000 | I92: 33578000 | J92: 191145000 | L92: =F92*$K$9/($K$8*1000) -> 0 | M92: =H92*$K$9/($K$8*1000) -> 308.0402277 | N92: 65.64429585 | O92: 373.6845235
B93: 912 | E93: CONSTRUCTION TOOLS & EQUIP | F93: 0 | G93: 428000 | H93: 9500000 | I93: 72557000 | J93: 82057000 | L93: 0 | M93: 18.57230361 | N93: 141.847435 | O93: 160.4197387
B94: 913 | E94: PAYROLL INSURANCE & TAXES | F94: 111710000 | G94: 0 | H94: 0 | I94: 0 | J94: 111710000 | L94: 218.3907406 | M94: 0 | N94: 0 | O94: 218.3907406
B95: 914 | E95: PERMITS.INS. & LOCAL TAXES | F95: 0 | G95: 0 | H95: 0 | I95: 2438000 | J95: 2438000 | L95: 0 | M95: 0 | N95: 4.7662396 | O95: 4.7662396
A96: 91 | D96: 31 | E96: CONSTRUCTION SERVICES | F96: 111710000 | G96: 7523000 | H96: 167067000 | I96: 108573000 | J96: 387350000 | L96: 218.3907406 | M96: 326.6125313 | N96: 212.2579705 | O96: 757.2612424
B98: 921 | D98: 35 | E98: HOME OFFICE SERVICES | F98: 447077000 | G98: 0 | H98: 0 | I98: 0 | J98: 447077000 | L98: =F98*$K$9/($K$8*1000) -> 874.0262927 | M98: =H98*$K$9/($K$8*1000) -> 0 | N98: 0 | O98: 874.0262927
B99: 922 | D99: 36 | E99: HOME OFFICE Q/A | F99: 15045000 | G99: 0 | H99: 0 | I99: 0 | J99: 15045000 | L99: 29.41266398 | M99: 0 | N99: 0 | O99: 29.41266398
B100: 923 | D100: 36 | E100: HOME OFFICE CONSTRCTN MGMT | F100: 6562000 | G100: 0 | H100: 0 | I100: 0 | J100: 6562000 | L100: 12.82857435 | M100: 0 | N100: 0 | O100: 12.82857435
A101: 92 | E101: HOME OFFICE ENGRG.&SERVICE | F101: 468684000 | G101: 0 | H101: 0 | I101: 0 | J101: 468684000 | L101: 916.267531 | M101: 0 | N101: 0 | O101: 916.267531
B103: 931 | D103: 37 | E103: FIELD OFFICE EXPENSES | F103: 0 | G103: 61000 | H103: 1358000 | I103: 17997000 | J103: 19355000 | L103: =F103*$K$9/($K$8*1000) -> 0 | M103: =H103*$K$9/($K$8*1000) -> 2.654861926 | N103: 35.18376295 | O103: 37.83862488
B104: 932 | D104: 32 | E104: FIELD JOB SUPERVISION | F104: 349862000 | G104: 519000 | H104: 11533000 | I104: 0 | J104: 361395000 | L104: 683.9729774 | M104: 22.54677658 | N104: 0 | O104: 706.519754
B105: 933 | D105: 38 | E105: FIELD QA/QC | F105: 22882000 | G105: 352000 | H105: 7828000 | I105: 0 | J105: 30710000 | L105: 44.73383697 | M105: 15.30357817 | N105: 0 | O105: 60.03741514
B106: 934 | D106: 33 | E106: PLANT STARTUP & TEST | F106: 17073000 | G106: 0 | H106: 0 | I106: 0 | J106: 17073000 | L106: 33.37736205 | M106: 0 | N106: 0 | O106: 33.37736205
A107: 93 | E107: FIELD OFFICE ENGRG&SERVICE | F107: 389817000 | G107: 932000 | H107: 20719000 | I107: 17997000 | J107: 428533000 | L107: 762.0841764 | M107: 40.50521668 | N107: 35.18376295 | O107: 837.773156
E109: TOTAL INDIRECT COSTS | F109: 970211000 | G109: 8455000 | H109: 187786000 | I109: 126570000 | J109: 1284567000 | L109: =F109*$K$9/($K$8*1000) -> 1896.742448 | M109: =H109*$K$9/($K$8*1000) -> 367.1177479 | N109: 247.4417334 | O109: 2511.301929
E111: TOTAL BASE COST | F111: 1484763009 | G111: 30481386 | H111: 677029783 | I111: 276078455 | J111: 2437871247 | L111: =F111*$K$9/($K$8*1000) -> 2902.680988 | M111: =H111*$K$9/($K$8*1000) -> 1323.57923 | N111: 539.7276722 | O111: 4765.98789

Sheet Other Reference Cost Sources
A1: Other Reference Cost Sources
A2: Locked - No User Inputs or Changes
A4: This tab shows the sources and calculations underlying the PWR reference cost estimates for other categories than construction costs (20s and 30s from the DOE cost report on separate tab)
A6: Land, Studies, Permits (10s: Preconstruction Costs)
A7: Land | B7: 8.5 | C7: Source
A8: Site Permits | B8: 25 | C8: Source
A9: Plant Licensing | B9: 60 | C9: Source
A10: Plant Permits | B10: 10 | C10: Source
A11: Plant Studies | B11: 10 | C11: Source
A12: Plant Reports | B12: 8.2 | C12: Source
A13: Other Preconstruction Costs | B13: 10 | C13: Source
A15: Staff Recruitment, Training, Housing (40s: Owner's Costs)
A16: These costs are calculated as a percentage of construction costs (20s and 30s), according to the following source:
A17: Oak Ridge National Lab (Delene and Hudson), Cost Estimate Guidelines for Advanced Nuclear Power Technologies, 1993
A18: Page 28
A19: http://www.iaea.org/inis/collection/NCLCollectionStore/_Public/25/011/25011638.pdf
A20: Percentage of Construction Costs | B20: 0.15
A22: Decommissioning (58 Within the 50s: Supplementary Costs)
A23: Decommissioning costs are a percentage of construction costs (20s and 30s) based on the midpoint in the following source:
A24: “Decommissioning costs are about 9-15% of the initial capital cost of a nuclear power plant."
A25: http://www.world-nuclear.org/information-library/economic-aspects/economics-of-nuclear-power.aspx
A26: Future decommissioning costs are converted to present value based on assumed plant lifetime and assumed discount rate
A27: Percentage of Construction Costs | B27: 0.12
A28: Decommissioning Years in Future | B28: 40
A29: Discount Rate for Present Value | B29: 0.07
A30: Note: As a minor simplifying assumption for cost impact calculations, decommissioning schedule for applicant does not depend on plant lifetime.
A32: Other Supplementary Costs (50s Except 58)
A33: Shipping and Transportation Costs | B33: 10 | C33: Source
A34: Spare Parts | B34: 10 | C34: Source
A35: Taxes | B35: 10 | C35: Source
A36: Insurance | B36: 10 | C36: Source
A37: Initial Fuel Core Load (If Capitalized) | B37: 0 | C37: Source
A39: Fuel Costs (80s)
A40: Fuel Purchases | B40: 0.5 | C40: Source | D40: =3412/10459 -> 0.3262262167 | E40: Source | F40: =B40*(3.412/D40) -> 5.2295
A41: Spent Fuel Storage and Reprocessing | B41: =3.5/1.24 -> 2.822580645 | C41: Source
A43: Staff Costs (71 and 72 Within the 70s: O&M Costs)
A44: PWR reference staff salaries and headcounts are from the following report:
A45: Oak Ridge National Lab (Bowers, Fuller, and Myers), Cost Estimating Relationships for Nuclear Power Plant Operation and Maintenance, November 1987
A46: Table 3.1: Estimated annual salaries and onsite staffing for 1100 MWe nuclear unit
A47: https://www.osti.gov/scitech/servlets/purl/5431729
C48: =245.12/113.6 -> 2.157746479
B49: Salary
B50: 1987$ | C50: 2017$ | D50: Headcount | E50: Total Cost
A51: Plant Manager's Office
A52: Plant Manager | B52: 100000 | C52: =ROUND(B52*$C$48,-3) -> 216000 | D52: 1 | E52: =C52*D52 -> 216000
A53: Assistant manager | B53: 70000 | C53: =ROUND(B53*$C$48,-3) -> 151000 | D53: 1 | E53: =C53*D53 -> 151000
A54: Public relations | B54: 44000 | C54: 95000 | D54: 2 | E54: 190000
A55: Environmental control | B55: 44000 | C55: 95000 | D55: 2 | E55: 190000
A56: Quality assurance | B56: 51000 | C56: 110000 | D56: 6 | E56: 660000
A57: Training | B57: 49000 | C57: 106000 | D57: 48 | E57: 5088000
A58: Safety and fire protection engineering | B58: 41000 | C58: 88000 | D58: 7 | E58: 616000
A59: Administrative services | B59: 27000 | C59: 58000 | D59: 80 | E59: 4640000
A60: Fire brigade | B60: 24000 | C60: 52000 | D60: 27 | E60: 1404000
A61: Security | B61: 24000 | C61: 52000 | D61: 126 | E61: 6552000
A62: Subtotal | D62: =SUM(D52:D61) -> 300 | E62: =SUM(E52:E61) -> 19707000
A64: Operations
A65: Supervision | B65: 51000 | C65: =ROUND(B65*$C$48,-3) -> 110000 | D65: 4 | E65: =C65*D65 -> 440000
A66: Shift operations | B66: 43000 | C66: 93000 | D66: 103 | E66: 9579000
A67: Engineering | B67: 47000 | C67: 101000 | D67: 20 | E67: 2020000
A68: Subtotal | D68: =SUM(D65:D67) -> 127 | E68: =SUM(E65:E67) -> 12039000
A70: Maintenance
A71: Supervision | B71: 48000 | C71: =ROUND(B71*$C$48,-3) -> 104000 | D71: 7 | E71: =C71*D71 -> 728000
A72: Crafts | B72: 34000 | C72: 73000 | D72: 140 | E72: 10220000
A73: Annualized peak maintenance | B73: 34000 | C73: 73000 | D73: 55 | E73: 4015000
A74: Engineering | B74: 44000 | C74: 95000 | D74: 12 | E74: 1140000
A75: Quality control | B75: 37000 | C75: 80000 | D75: 7 | E75: 560000
A76: Storekeepers | B76: 31000 | C76: 67000 | D76: 9 | E76: 603000
A77: Subtotal | D77: =SUM(D71:D76) -> 230 | E77: =SUM(E71:E76) -> 17266000
A79: Technical Support
A80: Reactor engineering | B80: 51000 | C80: =ROUND(B80*$C$48,-3) -> 110000 | D80: 5 | E80: =C80*D80 -> 550000
A81: Radiochem and water chem | B81: 48000 | C81: 104000 | D81: 12 | E81: 1248000
A82: Engineering | B82: 44000 | C82: 95000 | D82: 30 | E82: 2850000
A83: Technicians | B83: 36000 | C83: 78000 | D83: 60 | E83: 4680000
A84: Health physics | B84: 36000 | C84: 78000 | D84: 36 | E84: 2808000
A85: Subtotal | D85: =SUM(D80:D84) -> 143 | E85: =SUM(E80:E84) -> 12136000
A87: Total | D87: =D62+D68+D77+D85 -> 800 | E87: =E62+E68+E77+E85 -> 61148000
E89: 1100
A91: Other O&M Costs (70s Except 71 and 72)
A92: PWR reference values for other O&M costs are from the following report:
A93: Oak Ridge National Lab (Bowers, Fuller, and Myers), Cost Estimating Relationships for Nuclear Power Plant Operation and Maintenance, November 1987
A94: Table 1.1: Annual O&M cost estimates for 1100 MWe nuclear unit
A95: https://www.osti.gov/scitech/servlets/purl/5431729
B96: 1987$ | C96: 2017$
A97: Maintenance Materials | B97: 7.8 | C97: =B97*$C$48 -> 16.83042254
A98: Supplies and Expenses | B98: 14.8 | C98: =B98*$C$48 -> 31.93464789
A99: Offsite Technical Support | B99: 13.3 | C99: 28.69802817
A100: Pensions and Benefits | B100: 9.3 | C100: 20.06704225
A101: Nuclear Insurance Premiums | B101: 6.3 | C101: 13.59380282
A102: Other admin and general expenses | B102: 10.2 | C102: 22.00901408
A103: Total | C103: =SUM(C97:C102) -> 133.1329577
A105: Operating Fees (90s: Financing During Operation)
A106: PWR reference values for other O&M costs are from the following report (same as staff and other O&M costs):
A107: Oak Ridge National Lab (Bowers, Fuller, and Myers), Cost Estimating Relationships for Nuclear Power Plant Operation and Maintenance, November 1987
A108: Table 1.1: Annual O&M cost estimates for 1100 MWe nuclear unit
A109: https://www.osti.gov/scitech/servlets/purl/5431729
B110: 1987$ | C110: 2017$
A111: Nuclear Regulatory Fees | B111: 1.3 | C111: =B111*$C$48 -> 2.805070423

Sheet LCOE Parameters and Interest
A1: LCOE Parameters and Interest
A2: Locked - No User Inputs or Changes
A4: LCOE Parameters
A5: Discount Rate | B5: 0.07
A6: Capacity Factor | B6: 0.95
A8: Compound Interest During Construction
A9: Interest Rate | B9: 0.07
B11: Reference Plant | E11: Applicant's Plant
B12: Preconstr. | C12: Direct Const. | D12: Indirect Serv. | E12: Preconstr. | F12: Direct Const. | G12: Indirect Serv.
A13: Expenditures | B13: ='User Inputs and Cost Calcs'!G35 -> 131.7 | C13: =SUM('User Inputs and Cost Calcs'!G21:G29) -> 2254.685961 | D13: =SUM('User Inputs and Cost Calcs'!G31:G33) -> 2511.301929 | E13: =B13-'User Inputs and Cost Calcs'!J35 -> 131.7 | F13: =C13-SUM('User Inputs and Cost Calcs'!J21:J29) -> 2254.685961 | G13: =D13-SUM('User Inputs and Cost Calcs'!J31:J33) -> 2511.301929
A14: Start Year | B14: 1 | C14: =B15+1 -> 3 | D14: =C14 -> 3 | E14: 1 | F14: =E15+1 -> 3 | G14: =F14 -> 3
A15: End Year | B15: 2 | C15: =C14+C16-1 -> 4 | D15: =D14+D16-1 -> 7 | E15: 2 | F15: =F14+F16-1 -> 4 | G15: =G14+G16-1 -> 7
A16: Duration | B16: =B15-B14+1 -> 2 | C16: 2 | D16: ='User Inputs and Cost Calcs'!D46 -> 5 | E16: =E15-E14+1 -> 2 | F16: =MIN('User Inputs and Cost Calcs'!D47,2) -> 2 | G16: ='User Inputs and Cost Calcs'!D47 -> 5
A17: Expenditures Per Year | B17: =B13/B16 -> 65.85 | C17: =C13/C16 -> 1127.34298 | D17: 502.2603859 | E17: =E13/E16 -> 65.85 | F17: =F13/F16 -> 1127.34298 | G17: =G13/G16 -> 502.2603859
A18: Interest (Calcs Below) | B18: =SUM(B35:B46)-SUM(B21:B32) -> 66.05929356 | C18: =SUM(C35:C46)-SUM(C21:C32) -> 702.438695 | D18: 476.4495696 | E18: =SUM(E35:E46)-SUM(E21:E32) -> 66.05929356 | F18: 702.438695 | G18: =SUM(G35:G46)-SUM(G21:G32) -> 476.4495696
A20: Expenditures
A21: 1 | B21: =IF(AND($A21>=B$14,$A21<=B$15),B$17,0) -> 65.85 | C21: =IF(AND($A21>=C$14,$A21<=C$15),C$17,0) -> 0 | D21: 0 | E21: 65.85 | F21: 0 | G21: 0
A22: 2 | B22: =IF(AND($A22>=B$14,$A22<=B$15),B$17,0) -> 65.85 | C22: 0 | D22: 0 | E22: 65.85 | F22: 0 | G22: 0
A23: 3 | B23: 0 | C23: 1127.34298 | D23: 502.2603859 | E23: 0 | F23: 1127.34298 | G23: 502.2603859
A24: 4 | B24: 0 | C24: 1127.34298 | D24: 502.2603859 | E24: 0 | F24: 1127.34298 | G24: 502.2603859
A25: 5 | B25: 0 | C25: 0 | D25: 502.2603859 | E25: 0 | F25: 0 | G25: 502.2603859
A26: 6 | B26: 0 | C26: 0 | D26: 502.2603859 | E26: 0 | F26: 0 | G26: 502.2603859
A27: 7 | B27: 0 | C27: 0 | D27: 502.2603859 | E27: 0 | F27: 0 | G27: 502.2603859
A28: 8 | B28: 0 | C28: 0 | D28: 0 | E28: 0 | F28: 0 | G28: 0
A29: 9 | B29: 0 | C29: 0 | D29: 0 | E29: 0 | F29: 0 | G29: 0
A30: 10 | B30: 0 | C30: 0 | D30: 0 | E30: 0 | F30: 0 | G30: 0
A31: 11 | B31: 0 | C31: 0 | D31: 0 | E31: 0 | F31: 0 | G31: 0
A32: 12 | B32: 0 | C32: 0 | D32: 0 | E32: 0 | F32: 0 | G32: 0
A34: Total Due at End Year
A35: 1 | B35: =B21*(1+$B$9)^($D$15-$A35+0.5) -> 102.223403 | C35: =C21*(1+$B$9)^($D$15-$A35+0.5) -> 0 | D35: 0 | E35: =E21*(1+$B$9)^($G$15-$A35+0.5) -> 102.223403 | F35: =F21*(1+$B$9)^($G$15-$A35+0.5) -> 0 | G35: 0
A36: 2 | B36: 95.53589061 | C36: =C22*(1+$B$9)^($D$15-$A36+0.5) -> 0 | D36: 0 | E36: =E22*(1+$B$9)^($G$15-$A36+0.5) -> 95.53589061 | F36: 0 | G36: 0
A37: 3 | B37: 0 | C37: 1528.56202 | D37: 681.0138205 | E37: =E23*(1+$B$9)^($G$15-$A37+0.5) -> 0 | F37: 1528.56202 | G37: 681.0138205
A38: 4 | B38: 0 | C38: 1428.562636 | D38: 636.4615145 | E38: =E24*(1+$B$9)^($G$15-$A38+0.5) -> 0 | F38: 1428.562636 | G38: 636.4615145
A39: 5 | B39: 0 | C39: 0 | D39: 594.8238453 | E39: =E25*(1+$B$9)^($G$15-$A39+0.5) -> 0 | F39: 0 | G39: 594.8238453
A40: 6 | B40: 0 | C40: 0 | D40: 555.9101358 | E40: =E26*(1+$B$9)^($G$15-$A40+0.5) -> 0 | F40: 0 | G40: 555.9101358
A41: 7 | B41: 0 | C41: 0 | D41: 519.542183 | E41: =E27*(1+$B$9)^($G$15-$A41+0.5) -> 0 | F41: 0 | G41: 519.542183
A42: 8 | B42: =B28*(1+$B$9)^($D$15-$A42+0.5) -> 0 | C42: 0 | D42: 0 | E42: =E28*(1+$B$9)^($G$15-$A42+0.5) -> 0 | F42: 0 | G42: 0
A43: 9 | B43: =B29*(1+$B$9)^($D$15-$A43+0.5) -> 0 | C43: 0 | D43: 0 | E43: =E29*(1+$B$9)^($G$15-$A43+0.5) -> 0 | F43: 0 | G43: 0
A44: 10 | B44: =B30*(1+$B$9)^($D$15-$A44+0.5) -> 0 | C44: 0 | D44: 0 | E44: =E30*(1+$B$9)^($G$15-$A44+0.5) -> 0 | F44: 0 | G44: 0
A45: 11 | B45: =B31*(1+$B$9)^($D$15-$A45+0.5) -> 0 | C45: 0 | D45: 0 | E45: =E31*(1+$B$9)^($G$15-$A45+0.5) -> 0 | F45: 0 | G45: 0
A46: 12 | B46: =B32*(1+$B$9)^($D$15-$A46+0.5) -> 0 | C46: 0 | D46: 0 | E46: =E32*(1+$B$9)^($G$15-$A46+0.5) -> 0 | F46: 0 | G46: 0

Sheet Gen IV Cost Codes
A1: Gen IV Cost Codes
A2: Locked - No User Inputs or Changes
A4: This tab presents the Gen IV International Forum's comprehensive and standardized nuclear power plant cost codes from the following report:
A5: Gen IV International Forum's Economic Modeling Working Group, Cost Estimating Guidelines for Generation IV Nuclear Energy Systems, Revision 4.2, September 26, 2007
A6: Appendix F
A7: https://www.gen-4.org/gif/upload/docs/application/pdf/2013-09/emwg_guidelines.pdf
A9: One-Digit Summary
B11: 10 | E11: Capitalized Preconstruction Costs
B12: 20 | E12: Capitalized Direct Costs
B13: 30 | E13: Capitalized Indirect Services Costs
B14: 40 | E14: Capitalized Owner's Costs
B15: 50 | E15: Capitalized Supplementary Costs
B16: 60 | E16: Capitalized Financial Costs
B17: 70 | E17: Annualized O&M Cost
B18: 80 | E18: Annualized Fuel Cost
B19: 90 | E19: Annualized Financial Cost
A21: Two-Digit Breakdown
B23: 10 | E23: Capitalized Preconstruction Costs
C24: 11 | E24: Land and Land Rights | F24: This account includes the purchase of new land for the reactor site and land needed for any co-located facilities such as dedicated fuel cycle facilities. Costs for acquisition of land rights should be included. This category does not include siting costs such as geo-technical work (Account 211) or the preparation of environmental documentation (Account 16).
C25: 12 | E25: Site Permits | F25: This account includes costs associated with obtaining all site related permits for subsequent construction of the permanent plant.
C26: 13 | E26: Plant Licensing | F26: This account includes costs associated with obtaining plant licenses for construction and operation of the plant.
C27: 14 | E27: Plant Permits | F27: This account includes costs associated with obtaining all permits for construction and operation of the plant.
C28: 15 | E28: Plant Studies | F28: This account includes costs associated with plant studies performed for the site or plant in support of construction and operation of the plant.
C29: 16 | E29: Plant Reports | F29: This account includes costs associated with production of major reports such as an environmental impact statement or the safety analysis report.
C30: 17 | E30: Other Pre-Construction Costs | F30: This account includes other costs that are incurred by Owner prior to start of construction and may include public awareness programs, site remediation work for plant licensing, etc.
C31: 19 | E31: Contingency on Pre-Construction Costs | F31: This account includes an assessment of additional cost necessary to achieve the desired confidence level for the preconstruction costs not to be exceeded.
B33: 20 | E33: Capitalized Direct Costs
C34: 21 | E34: Structures and Improvements | F34: This account covers costs for civil work and civil structures, mostly buildings, exclusive of those for the cooling towers.
C35: 22 | E35: Reactor Equipment | F35: This category is most dependent on the reactor technology being considered, because the sub-account descriptions and costs depend heavily on the coolant used and whether the subsystems are factory-produced or constructed onsite. For today's LWRs, the entire nuclear steam supply system (NSSS) can be purchased as a unit from a reactor vendor. The reactor manufacturer may have its own COA structure for all the NSSS components. The list below attempts to be as generic as possible. The initial and reload fuel cores are not included here.
C36: 23 | E36: Turbine Generator Equipment | F36: This category assumes that electricity is the primary product. The categories below apply mostly to a steam-driven turbine; however, similar categories would exist for gas-driven turbines. This account includes all process equipment and systems associated with the plant output. For other plants, appropriate coding is required to separate the plant into logical and significant plant systems.
C37: 24 | E37: Electrical Equipment | F37: Accounts 21 through 23 all have interfaces with the power plant electrical service system and its associated equipment. This equipment is located both inside and outside the main reactor/BOP buildings.
C38: 25 | E38: Heat Rejection System | F38: This account includes heat rejection equipment such as circulating water pumps, piping, valves, and cooling towers, which may be required even if the plant does not produce electricity.
C39: 26 | E39: Miscellaneous Equipment | F39: Covers items not in the categories above.
C40: 27 | E40: Special Materials | F40: This account includes non-fuel items such as heavy water, other special coolants, and salts needed before start-up.
C41: 28 | E41: Simulator | F41: This account includes the development of new simulators for training operators.
C42: 29 | E42: Contingency on Direct Costs | F42: This account includes the assessment of additional cost that might be necessary to achieve the desired confidence level for the direct costs not to be exceeded. Contingency is usually applied at an aggregated level, although its determination may include applying contingencies to individual high-cost-impact items in the estimate. There are both deterministic and probabilistic methods for calculating its value. Deterministic methods require assessment of the maturity and complexity of the various aspects of the project and cost weighting of the base estimate. The probabilistic approach relies on statistical methods to determine uncertainty ranges for the key cost parameters affecting the base plus owner's costs. Contingency must have a statistical level of confidence associated with it (e.g., an 80% chance that a total cost will not overrun the base plus contingency sum).
B44: 30 | E44: Capitalized Indirect Services Cost
C45: 31 | E45: Field Indirect Costs | F45: This account includes cost of construction equipment rental or purchase, temporary buildings, shops, laydown areas, parking areas, tools, supplies, consumables, utilities, temporary construction, warehousing, and other support services. Account 31 also includes: - Temporary construction facilities, such as site offices, warehouses, shops, trailers, portable offices, portable restroom facilities, temporary worker housing, and tents. - Tools and heavy equipment used by craft workers and rented equipment such as cranes, bulldozers, graders, and welders. Typically, equipment with values of less than $1,000 are categorized as tools. - Transport vehicles rented or allocated to the project, such as fuel trucks, flatbed trucks, large trucks, cement mixers, tanker trucks, official automobiles, buses, vans, and light trucks. - Expendable supplies, consumables, and safety equipment. - Cost of utilities, office furnishings, office equipment, office supplies, radio communications, mail service, phone service, and construction insurance. - Construction support services, temporary installations, warehousing, material handling, site cleanup, water delivery, road and parking area maintenance, weather protection and repairs, snow clearing, and maintenance of tools and equipment.
C46: 32 | E46: Construction Supervision | F46: This account covers the direct supervision of construction (craft-performed) activities by the construction contractors or direct-hire craft labor by the A/E contractor. The costs of the craft laborers themselves are covered in the labor-hours component of the direct cost in Accounts 21 through 28 or in Account 31. This account covers work done at the site in what are usually temporary or rented facilities. It includes non-manual supervisory staff, such as field engineers and superintendents. Other non-manual field staff are included with Account 38, PM/CM Services Onsite.
C47: 33 | E47: Commissioning and Startup Costs | F47: This account includes costs incurred by the A/E, reactor vendor, other equipment vendors, and owner or owner‟s representative for startup of the plant including: - Startup procedure development - Trial test run services - Commissioning materials, consumables, tools, and equipment
C48: 34 | E48: Demonstration Test Run | F48: This account includes all services necessary to operate the plant to demonstrate plant performance values and durations, including operations labor, consumables, spares, and supplies.
C49: 35 | E49: Design Services Offsite | F49: This account covers engineering, design, and layout work conducted at the A/E home office and the equipment/reactor vendor's home office. Often pre-construction design is included here. These guidelines use the IAEA format for a standard plant (and equipment) design/construction/startup only and not the FOAK design and certification effort. (FOAK work is in the one-time deployment phase of the project and not included in the standard plant direct costs.) Design of the initial full size (FOAK) reactor, which will encompass multiple designs at several levels (pre-conceptual, conceptual, preliminary, etc.), will be a category of its own under FOAK cost. This account also includes site-related engineering and engineering effort (project engineering) required during construction of particular systems, which recur for all plants, and quality assurance costs related to design.
C50: 36 | E50: PM/CM Services Offsite | F50: This account covers the costs for project management and management support on the above activities (Account 31) taking place at the reactor vendor, equipment supplier, and A/E home offices.
C51: 37 | E51: Design Services Onsite | F51: This account includes the same items as in Account 35, except that they are conducted at the plant site office or onsite temporary facilities instead of at an offsite office. This account also includes additional services such as purchasing and clerical services.
C52: 38 | E52: PM/CM Services Onsite | F52: This account covers the costs for project management and construction management support on the above activities taking place at the plant site. It includes staff for quality assurance, office administration, procurement, contract administration, human resources, labor relations, project control, and medical and safety-related activities. Costs for craft supervisory personnel are included Account 32.
C53: 39 | E53: Contingency on Indirect Services Cost | F53: This account includes an assessment of additional cost necessary to achieve the desired confidence level for the support service costs not to be exceeded.
B55: 40 | E55: Capitalized Owner's Costs
C56: 41 | E56: Staff Recruitment and Training | F56: This account includes costs to recruit and train plant operators before plant startup or commissioning activities (Account 33), or demonstration tests (Account 34).
C57: 42 | E57: Staff Housing | F57: This account includes relocation costs, camps, or permanent housing provided to permanent plant operations and maintenance staff.
C58: 43 | E58: Staff Salary-Related Costs | F58: This account includes taxes, insurance, fringes, benefits, and any other salary-related costs.
C59: 44 | E59: Other Owner's Costs | F59: (No description details)
C60: 49 | E60: Contingency on Owner's Costs | F60: This account includes an assessment of additional costs necessary to achieve the desired confidence level for the capitalized owner‟s costs not to be exceeded.
B62: 50 | E62: Capitalized Supplementary Costs
C63: 51 | E63: Shipping and Transportation Costs | F63: This account includes shipping and transportation costs for major equipment or bulk shipments with freight forwarding.
C64: 52 | E64: Spare Parts | F64: This account includes spare parts furnished by system suppliers for the first year of commercial operation. It excludes spare parts required for plant commissioning, startup, or the demonstration run.
C65: 53 | E65: Taxes | F65: This account includes taxes associated with the permanent plant, such as property tax, to be capitalized with the plant.
C66: 54 | E66: Insurance | F66: This account includes insurance costs associated with the permanent plant to be capitalized with the plant.
C67: 55 | E67: Initial Fuel Core Load | F67: This account covers fuel purchased by the utility before commissioning, which is assumed to be part of the Total Capitalized Investment Cost (TCIC). In the U.S., the initial core is not usually included in the design/construction (overnight) cost sum to which interest during construction (IDC; see below) is added. Because the first core, however, will likely have to be financed along with the design/construction/startup costs, its cost is included in overnight costs as part of capital at risk before revenues. This is a new account added to the modified IAEA account system.
C68: 58 | E68: Decommissioning Costs | F68: This account includes the cost to decommission, decontaminate, and dismantle the plant at the end of commercial operation, if it is capitalized with the plant.
C69: 59 | E69: Contingency on Supplementary Costs | F69: This account includes an assessment of additional cost necessary to achieve a desired confidence level for the capitalized supplementary costs not to be exceeded. The contingency for the initial core load should not be applied to this item, because the contingency is already imbedded in the fuel cycle costs from the fuel cycle model.
B71: 60 | E71: Capitalized Financial Costs
C72: 61 | E72: Escalation | F72: This account is typically excluded for a fixed year, constant dollar cost estimate, although it could be included in a business plan, a financing proposal, or regulatory-related documents.
C73: 62 | E73: Fees | F73: This account includes any fees or royalties that are to be capitalized with the plant.
C74: 63 | E74: Interest During Construction | F74: IDC is applied to the sum of all up-front costs (i.e., Accounts 1 through 5 base costs), including respective contingencies. These costs are incurred before commercial operation and are assumed to be financed by a construction loan. The IDC represents the cost of the construction loan (e.g., its interest).
C75: 69 | E75: Contingency on Financial Costs | F75: This account includes an assessment of additional cost necessary to achieve the desired confidence level for capitalized financial costs not to be exceeded, including schedule uncertainties.
B77: 70 | E77: Annualized O&M Cost
C78: 71 | E78: O&M Staff | F78: This account includes salary costs of O&M staff.
C79: 72 | E79: Management Staff | F79: This account includes salary costs of operations management staff.
C80: 73 | E80: Salary-Related Costs | F80: This account includes taxes, insurance, fringes, benefits, and any other annual salary-related costs.
C81: 74 | E81: Operating Chemicals and Lubricants | F81: (No description details)
C82: 75 | E82: Spare Parts | F82: Cost of any operational spare parts, excluding capital plant upgrades or major equipment that will be capitalized or amortized over some period or quantity of product.
C83: 76 | E83: Utilities, Supplies, and Consumables | F83: Cost of water, gas, electricity, tools, machinery, maintenance equipment, office supplies and similar items purchased annually.
C84: 77 | E84: Capital Plant Upgrades | F84: Upgrades to maintain or improve plant capacity, meet future regulatory requirements or plant life extensions.
C85: 78 | E85: Taxes and Insurance | F85: Property taxes and insurance costs, excluding salary related.
C86: 79 | E86: Contingency on Annualized O&M Costs | F86: This account includes an assessment of additional cost necessary to achieve the desired confidence level for the annualized O&M costs not to be exceeded.
B88: 80 | E88: Annualized Fuel Cost
C89: 81 | E89: Refueling Operations | F89: This account includes incremental costs associated with refueling operations.
C90: 84 | E90: Nuclear Fuel | F90: This account includes annualized costs associated with the fuel cycle.
C91: 86 | E91: Fuel Reprocessing Charges | F91: This account includes storage and reprocessing charges for spent fuel.
C92: 87 | E92: Special Nuclear Materials | F92: Such as heavy water, sodium, lead, helium or other energy transfer mediums that are required on an annual basis. Includes costs associated with disposal or treatment if necessary.
C93: 89 | E93: Contingency on Annualized Fuel Costs | F93: This account includes an assessment of additional cost necessary to achieve the desired confidence level for the annualized fuel costs not to be exceeded.
B95: 90 | E95: Annualized Financial Cost
C96: 91 | E96: Escalation | F96: This account is to be excluded from estimated costs for Generation IV nuclear energy systems, although it could be included in a business plan, a financing proposal, or regulatory-related documents.
C97: 92 | E97: Fees | F97: Cost of fees incurred for annual fees such as licensed reactor process, nuclear operating license fees, and similar.
C98: 93 | E98: Cost of Money | F98: Value of money utilized for operating costs. May be financed externally or retained earnings.
C99: 99 | E99: Contingency on Annualized Financial Costs | F99: This account includes an assessment of additional costs necessary to achieve the desired confidence level for the annualized financial costs not to be exceeded, including schedule uncertainties.
A101: Three-Digit Details for Accounts 21-26
C103: 21 | E103: Structures and Improvements
D104: 211 | E104: Site Preparation/Yard Work | F104: Includes clearing, grubbing, scraping, geo-technical work, site cut, fill and compact, drainage, fences, landscaping, etc.
D105: 212 | E105: Reactor Island Civil Structures | F105: Primary process facility; includes installation, labor, and materials for concrete and metalwork for the building surrounding and supporting the nuclear island, including the reactor containment structure. Also includes the biological shielding around the reactor core, refueling canal (for PWRs, the steam generators would be located inside this structure), structural excavation and backfill, foundations, walls, slabs, siding, roof, architectural finishes, elevators, lighting, HVAC (general building service), fire protection, plumbing, and drainage.
D106: 213 | E106: Turbine Generator Building | F106: Secondary process facility; includes installation, labor, and materials for concrete and structural metalwork for the building surrounding and supporting the turbine generator(s). (For concepts that do not produce electricity, this account can be replaced with appropriate energy product buildings.) Also includes structural excavation and backfill, foundations, walls, slabs, siding, roof, architectural finishes, elevators, lighting, HVAC, fire protection, plumbing, and drainage.
E108: The rest of the 21 series accounts are for other support buildings on the site. Modular concepts might have a separate building to house centralized functions for all modules, such as an external control room. Here, the building costs are for the complete civil structure, including structural excavation and backfill, foundations, finishes, and building services such as elevators, lighting, HVAC, fire protection, or domestic water and drainage, but do not include the specialized equipment within.
D110: 214 | E110: Security Building and Gatehouse | F110: Houses the security force and support staff. The gatehouse controls entrance and egress to the site and provides visitor control functions.
D111: 215 | E111: Reactor Service (Auxiliary) Building | F111: Houses the fuel storage area, the spent- fuel pool, the control room, and most other balance of plant (BOP) functions.
D112: 216 | E112: Radwaste Building | F112: Accommodates the preparation and packaging of solid process wastes and maintenance wastes from reactor operations. This function could also be housed in the Auxiliary Building.
D113: 217 | E113: Fuel Service Building | F113: (If separate, otherwise in Account 215) Includes facilities for receiving, storage, and services for handling reactor fuel assemblies.
D114: 218A | E114: Control Building | F114: Houses the control room, if the control room structure is not part of Account 212.
D115: 218B | E115: Administration Building | F115: Houses the offices for management, administrative, engineering, clerical, finance, and other support staff.
D116: 218C | E116: Operation and Maintenance (O&M) Center | F116: Houses the O&M staff plus equipment for repair and maintenance of small equipment (if not in Account 215).
D117: 218E | E117: Steam Generator Storage Building | F117: (For PWR concepts)
D118: 218K | E118: Pipe Tunnels | F118: (No description details)
D119: 218L | E119: Electrical Tunnels | F119: (No description details)
D120: 218N | E120: Maintenance Shop | F120: Includes maintenance and repair capability for large items such as a crane.
D121: 218Q | E121: Foundations for Outside Equipment and Tanks | F121: Such as Condensate storage tank or main transformer.
D122: 218R | E122: Balance of Plant Service Building | F122: (If not in Account 215)
D123: 218S | E123: Wastewater Treatment Building | F123: (No description details)
D124: 218T | E124: Emergency Power Generation Building | F124: Houses the gas turbines or diesel engines need to provide power to safety systems in the event of a reactor shutdown and loss of offsite power.
D125: 218W | E125: Warehouse | F125: (No description details)
D126: 218X | E126: Railroad Tracks | F126: (No description details)
D127: 218Y | E127: Roads and Paved Areas | F127: (No description details)
D128: 218Z | E128: Reactor Receiving and Assembly Building | F128: For modular concepts
D129: 219A | E129: Training Center | F129: (No description details)
D130: 219K | E130: Special Material Unloading Facility | F130: (No description details)
C132: 22 | E132: Reactor Equipment
D133: 221 | E133: Reactor Equipment | F133: Includes the reactor vessel and accessories, reactor supports, reactor vessel internals (non-fuel), transport to the site, in-core reactor control devices, and the control rod systems.
D134: 222 | E134: Main Heat Transport System | F134: Includes the initial reactor coolant load, the pressurizing or cover gas system, steam generators (if applicable), the reactor coolant piping system, the fluid drive circulation system (including pumps), heat exchangers, and in-system diagnostic instrumentation and metering. Also includes main steam piping to turbine control and isolation valves (Account 231) and feedwater piping from the feed heating system (Account 234).
D135: 223 | E135: Safety Systems | F135: Includes the residual heat removal system, the safety injection system, any containment spray system, the combustible gas control system, and any associated heat exchangers, valves, pumps, pipes, and instruments.
D136: 224 | E136: Radioactive Waste Processing Systems | F136: Includes liquid waste processing, the fission gas distribution and process system, and the solid radioactive waste system.
D137: 225 | E137: Fuel Handling Systems | F137: Includes fuel handling and storage equipment, such as cranes, fuel handling tools, service platforms, and fuel cleaning and inspection equipment.
D138: 226 | E138: Other Reactor Plant Equipment | F138: Includes the inert gas system, make-up coolant systems, coolant treatment system, the auxiliary cooling system, maintenance equipment, and sampling equipment.
D139: 227 | E139: Reactor Instrumentation and Control (I&C) | F139: Includes benchboards, panels, racks, process computers, monitoring systems, plant control and protection system, I&C tubing and fittings, instrumentation, and software.
D140: 228 | E140: Reactor Plant Miscellaneous Items | F140: Includes painting, welder qualification, and reactor plant insulation.
C142: 23 | E142: Turbine Generator Equipment
D143: 231 | E143: Turbine Generator(s) | F143: Includes turbine generator plus associated mountings, main steam control and isolation valves, lubrication system, gas systems, moisture separator, and drain system, excitation system, and controls. Main steam piping is in Account 222.
D144: 233 | E144: Condensing Systems | F144: Includes condenser equipment, the condensate system, the gas removal system, the turbine bypass system, condenser-cleaning system, and piping from condenser to the feedwater heating system (Account 234). Condensate polishing is in Account 235.
D145: 234 | E145: Feed Heating Systems | F145: Includes the feed heating system, feedwater heaters, feedwater system piping, the extraction steam system, and the feedwater heater vent and drain system. Piping to the steam generator continues with Account 222.
D146: 235 | E146: Other Turbine Plant Equipment | F146: Includes piping system, turbine auxiliaries, closed cooling water system, demineralized water make-up system, chemical treatment system, and neutralization system. The cooling towers are in Account 25.
D147: 236 | E147: Instrumentation and Control (I&C) | F147: Includes turbine generator control equipment, process computer, and BOP I&C, including software, tubing, and fittings. Cables are in Account 246.
D148: 237 | E148: Turbine Plant Miscellaneous Items | F148: Includes painting, welder qualification, and turbine plant insulation.
C150: 24 | E150: Electrical Equipment
D151: 241 | E151: Switchgear | F151: Includes switchgear for the generator and station service, generator transformer, auxiliary transformer, and connecting bus (typically to 10kV).
D152: 242 | E152: Station Service Equipment | F152: Includes substations, auxiliary power sources, load centers, motor control centers, and station service and startup equipment, transformers, and bus ducts (typically to 500V).
D153: 243 | E153: Switchboards | F153: Includes control panels, auxiliary power and signal boards, batteries, DC equipment, and non-interruptible power.
D154: 244 | E154: Protective Systems Equipment | F154: Includes grounding systems, lightning protection, cathodic protection, heat tracing, freeze protection equipment, radiation monitoring, environmental monitoring equipment, raceway, cable, and connections. Excludes communication systems (Account 263) and building services such as lighting, HVAC, and fire protection (which are included in their respective building accounts).
D155: 245 | E155: Electrical Raceway Systems | F155: Includes cable tray, exposed conduits, embedded conduits, underground conduit and duct systems, and the fittings, supports, covers, boxes, access holes, ducts, and accessories for the scheduled cable systems. Excludes raceways for protective systems (Account 244) and building services electrical systems (which are included in their respective building accounts).
D156: 246 | E156: Power and Control Cables and Wiring | F156: Typically includes all scheduled cable systems and their associated fittings such as cable, straps, attachments, terminations, wire lugs, cable numbers, and wire numbers. Excludes lighting, communication, and other protection systems.
C158: 25 | E158: Heat Rejection System
D159: 251 | E159: Structures | F159: Includes structures for the make-up water and intake, the circulating water-pump house, the make-up water pretreatment building, and the cooling towers.
D160: 252 | E160: Mechanical Equipment | F160: Includes the heat rejection mechanical equipment such as circulating water pumps, piping, valves, mechanical draft cooling towers, water treatment plant, intake water pumps, screens, and filters. Excludes condensers (Account 233) and natural draft towers (Account 251).
C162: 26 | E162: Miscellaneous Equipment
D163: 261 | E163: Transportation and Lift Equipment | F163: Includes cranes and hoists. (Elevators are in their respective building accounts.)
D164: 262 | E164: Air, Water, Plant Fuel Oil, and Steam Systems | F164: (No description details)
D165: 263 | E165: Communications Equipment | F165: Includes telephones, radio, CCTV, strobe, public address, enunciator, and electronic access control and security systems.
D166: 264 | E166: Furnishing and Fixtures | F166: Includes safety equipment, chemical laboratory equipment, instrument shop equipment, maintenance shop equipment, office equipment and furnishings, change room, and dining facility equipment.
A168: Aggregation Definitions
E170: Total Direct Costs | F170: 10 (Capitalized Preconstruction Costs) + 20 (Capitalized Direct Construction Costs)
E171: Total Field Costs | F171: Total Direct Costs (row above) + 31-34 (Capitalized Field Indirect Costs)
E172: Base Construction Cost | F172: Total Field Costs (row above) + 35-39 (Capitalized Field Management Costs)
E173: Overnight Construction Cost | F173: Base Construction Cost (row above) + 40 (Capitalized Owner Costs) + 50 (Capitalized Supplementary Costs)
E174: Total Capital Investment Cost | F174: Overnight Construction Cost (row above) + 60 (Capitalized Financial Costs)
